bitfinex-derivatives/quotes_BTCF0:USTF0_20241025
["timestamp","ask_amount","ask_price","bid_price","bid_amount"]
[1729856938671,0.23412157,68174.0,68173.0,0.21446466]
[1729856938672,0.073383,68174.0,68173.0,0.21446466]
[1729856938873,0.0323,68175.0,68173.0,0.14108166]
[1729856939169,0.0323,68175.0,68174.0,0.073382]
[1729856939473,0.22194239,68175.0,68174.0,0.073382]
[1729856940761,0.10351421,68175.0,68174.0,0.073382]
[1729856941073,0.17689521,68175.0,68174.0,0.073382]
[1729856942068,0.10351421,68175.0,68174.0,0.073382]
[1729856943267,0.0323,68175.0,68174.0,0.073382]
[1729856944377,0.04403,68175.0,68174.0,0.21446366]
[1729856945969,0.01173,68175.0,68174.0,0.21446366]
[1729856946170,0.0305,68187.0,68186.0,0.073369]
[1729856946372,0.0305,68187.0,68186.0,0.434169]
[1729856946874,0.0323,68196.0,68186.0,0.434169]
[1729856946875,0.0323,68196.0,68195.0,0.073359]
[1729856947079,0.0323,68196.0,68195.0,0.57524066]
[1729856947267,0.0305,68199.0,68198.0,0.073356]
[1729856948279,0.14108166,68219.0,68198.0,0.073356]
[1729856948280,0.3608,68231.0,68198.0,1.42645121]
[1729856948577,0.0309,68215.0,68202.0,0.3608]
[1729856948777,0.073344,68209.0,68208.0,0.3608]
[1729856949076,0.07335,68203.0,68202.0,0.3608]
[1729856949275,0.3608,68212.0,68202.0,0.3608]
[1729856949276,0.073346,68207.0,68202.0,0.3608]
[1729856949576,0.073347,68207.0,68201.0,0.073352]
[1729856949778,0.073346,68208.0,68202.0,0.3608]
[1729856949977,0.073346,68208.0,68203.0,0.07335]
[1729856950184,0.073346,68208.0,68207.0,0.14108166]
[1729856950877,0.073343,68211.0,68209.0,0.073343]
[1729856951179,0.073341,68212.0,68211.0,0.073342]
[1729856951378,0.073341,68212.0,68210.0,0.14108166]
[1729856951682,0.073342,68211.0,68210.0,0.14108166]
[1729856951878,0.073342,68211.0,68210.0,0.21442466]
[1729856952078,0.0321,68214.0,68209.0,0.3608]
[1729856952281,0.073343,68210.0,68209.0,0.3608]
[1729856952882,0.073343,68210.0,68203.0,0.14108166]
[1729856953184,0.07336,68194.0,68193.0,0.3608]
[1729856954475,0.21444166,68194.0,68186.0,0.3608]
[1729856954677,0.14108166,68189.0,68186.0,0.3608]
[1729856954884,0.14108166,68189.0,68180.0,0.3608]
[1729856955086,0.3608,68190.0,68180.0,0.3608]
[1729856955087,0.073374,68181.0,68180.0,0.3608]
[1729856955481,0.0312,68181.0,68180.0,0.57525666]
[1729856955879,0.0312,68181.0,68180.0,0.50188166]
[1729856956083,0.104574,68181.0,68180.0,0.50188166]
[1729856956282,0.0312,68181.0,68180.0,0.57525666]
[1729856956484,0.104574,68181.0,68180.0,0.50188166]
[1729856956784,0.0312,68181.0,68180.0,0.57525666]
[1729856957590,0.104574,68181.0,68180.0,0.21445666]
[1729856957785,0.0312,68181.0,68180.0,0.21445666]
[1729856957986,0.0316,68189.0,68188.0,0.073367]
[1729856959276,0.0662661,68189.0,68188.0,0.073367]
[1729856962385,0.0327,68195.0,68188.0,0.073367]
[1729856962586,0.0327,68195.0,68194.0,0.43416]
[1729856962779,0.10746116,68195.0,68194.0,0.43416]
[1729856963480,0.07476116,68195.0,68194.0,0.43416]
[1729856963793,0.0345945,68195.0,68194.0,0.43416]
[1729856963977,0.0345945,68195.0,68194.0,0.3608]
[1729856964175,0.0345945,68197.0,68194.0,0.3608]
[1729856964386,0.0345945,68197.0,68196.0,0.21443966]
[1729856964591,0.07484994,68197.0,68196.0,0.21443966]
[1729856964783,0.0345945,68197.0,68196.0,0.21443966]
[1729856966090,0.0317,68205.0,68204.0,0.073349]
[1729856966287,0.105048,68205.0,68204.0,0.073349]
[1729856966487,0.07335,68203.0,68202.0,0.3608]
[1729856966788,0.07335,68203.0,68202.0,0.434151]
[1729856966991,0.07335,68203.0,68202.0,0.3608]
[1729856967189,0.0317,68205.0,68196.0,0.073358]
[1729856967190,0.17278166,68205.0,68196.0,0.073358]
[1729856967392,0.073357,68197.0,68196.0,0.073358]
[1729856967895,0.53358166,68205.0,68194.0,0.3608]
[1729856968084,0.073355,68199.0,68198.0,0.073355]
[1729856968697,0.0328,68208.0,68207.0,0.073346]
[1729856969790,0.073347,68207.0,68206.0,0.073347]
[1729856970588,0.073347,68207.0,68202.0,0.3608]
[1729856970589,0.0328,68208.0,68207.0,0.073346]
[1729856970889,0.0301,68209.0,68205.0,0.14108166]
[1729856970890,0.0301,68209.0,68208.0,0.073345]
[1729856971085,0.0301,68209.0,68208.0,0.434145]
[1729856972209,0.103444,68209.0,68208.0,0.073345]
[1729856972999,0.0612,68209.0,68202.0,0.3608]
[1729856973190,0.0612,68209.0,68204.0,0.073347]
[1729856973191,0.073348,68205.0,68204.0,0.073347]
[1729856973390,0.0612,68209.0,68202.0,0.3608]
[1729856973588,0.073345,68208.0,68206.0,0.073347]
[1729856973995,0.14108166,68208.0,68202.0,0.3608]
[1729856974199,0.073349,68205.0,68202.0,0.3608]
[1729856974505,0.073349,68205.0,68204.0,0.073349]
[1729856975095,0.14986309,68205.0,68204.0,0.073349]
[1729856975996,0.1493866,68205.0,68204.0,0.073349]
[1729856976306,0.10853454,68205.0,68204.0,0.073349]
[1729856976607,0.073351,68203.0,68202.0,0.073351]
[1729856976788,0.10853654,68203.0,68202.0,0.073351]
[1729856977099,0.10853654,68203.0,68199.0,0.3608]
[1729856977100,0.073354,68200.0,68199.0,0.3608]
[1729856977299,0.21962395,68200.0,68199.0,0.31670538]
[1729856977605,0.26619355,68200.0,68199.0,0.31670538]
[1729856977811,0.19600978,68200.0,68199.0,0.073355]
[1729856978009,0.12265578,68200.0,68199.0,0.073355]
[1729856978399,0.14627059,68200.0,68199.0,0.073355]
[1729856978604,0.12265578,68200.0,68199.0,0.073355]
[1729856979597,0.14627389,68200.0,68196.0,0.14108166]
[1729856979800,0.12017343,68199.0,68196.0,0.14108166]
[1729856980005,0.3608,68203.0,68196.0,0.14108166]
[1729856980006,0.07455927,68198.0,68197.0,0.073357]
[1729856980298,0.12014264,68201.0,68197.0,0.073357]
[1729856980497,0.12014264,68200.0,68199.0,0.073355]
[1729856980714,0.07455927,68200.0,68199.0,0.073355]
[1729856980904,0.10785546,68200.0,68199.0,0.073355]
[1729856981300,0.20228166,68209.0,68199.0,0.45704534]
[1729856981301,0.0612,68209.0,68199.0,0.45704534]
[1729856981497,0.0612,68209.0,68201.0,0.073353]
[1729856981498,0.073353,68202.0,68201.0,0.073353]
[1729856981701,0.073353,68202.0,68201.0,0.16959834]
[1729856982998,0.073348,68206.0,68203.0,0.073349]
[1729856983203,0.073348,68206.0,68204.0,0.073349]
[1729856983505,0.073348,68205.0,68204.0,0.073349]
[1729856984102,0.0612,68209.0,68199.0,0.3608]
[1729856984103,0.073346,68208.0,68207.0,0.073345]
[1729856984306,0.073346,68208.0,68207.0,0.1313587]
[1729856984512,0.073346,68208.0,68207.0,0.073345]
[1729856984914,0.14627389,68253.0,68206.0,0.0580137]
[1729856984915,0.073336,68217.0,68210.0,0.073343]
[1729856985106,0.073341,68212.0,68211.0,0.11684461]
[1729856985306,0.073341,68212.0,68211.0,0.073341]
[1729856986008,0.073341,68212.0,68206.0,0.07251948]
[1729856986009,0.073342,68211.0,68208.0,0.073345]
[1729856986207,0.032,68216.0,68212.0,0.07334]
[1729856986402,0.073339,68214.0,68213.0,0.073339]
[1729856986606,0.073344,68210.0,68209.0,0.073343]
[1729856987010,0.073344,68210.0,68209.0,0.14586248]
[1729856987211,0.073344,68210.0,68209.0,0.24187977]
[1729856987411,0.073344,68210.0,68209.0,0.16936029]
[1729856987613,0.073344,68210.0,68209.0,0.14589182]
[1729856988110,0.073344,68210.0,68209.0,0.1693173]
[1729856988311,0.10831094,68210.0,68209.0,0.073343]
[1729856988705,0.03496694,68210.0,68209.0,0.21442466]
[1729856989113,0.032,68216.0,68209.0,0.14108166]
[1729856989315,0.10844843,68215.0,68214.0,0.073338]
[1729856990315,0.14922125,68215.0,68214.0,0.073338]
[1729856990611,0.39591143,68215.0,68209.0,0.14108166]
[1729856990806,0.03511143,68214.0,68213.0,0.07334]
[1729856991006,0.10845043,68214.0,68213.0,0.07334]
[1729856991207,0.14909518,68214.0,68213.0,0.07334]
[1729856991813,0.07575618,68214.0,68213.0,0.07334]
[1729856992017,0.03511143,68214.0,68213.0,0.07334]
[1729856993110,0.14910589,68214.0,68213.0,0.07334]
[1729856993419,0.07576689,68214.0,68213.0,0.07334]
[1729856993617,0.10845043,68214.0,68213.0,0.07334]
[1729856993815,0.10845043,68214.0,68205.0,0.50276166]
[1729856993816,0.03511143,68214.0,68210.0,0.073343]
[1729856994011,0.073342,68211.0,68210.0,0.073343]
[1729856994318,0.10845343,68211.0,68210.0,0.073343]
[1729856994518,0.14866201,68211.0,68210.0,0.073343]
[1729856995116,0.17308166,68216.0,68205.0,0.3608]
[1729856995117,0.073338,68215.0,68214.0,0.073339]
[1729856995315,0.14825137,68215.0,68214.0,0.073339]
[1729856995616,0.10800237,68215.0,68214.0,0.073339]
[1729856996318,0.073338,68215.0,68214.0,0.073339]
[1729856997417,0.073338,68215.0,68214.0,0.1313861]
[1729856997614,0.073338,68215.0,68214.0,0.073339]
[1729856998207,0.073338,68215.0,68214.0,0.11689067]
[1729856998723,0.073338,68215.0,68214.0,0.073339]
[1729857001528,0.032,68216.0,68215.0,0.073337]
[1729857001708,0.032,68216.0,68215.0,0.11688363]
[1729857002118,0.105336,68216.0,68215.0,0.11688363]
[1729857002315,0.3608,68217.0,68215.0,0.04354663]
[1729857002520,0.434135,68217.0,68216.0,0.073336]
[1729857002721,0.3608,68217.0,68212.0,0.3608]
[1729857002914,0.14108166,68216.0,68215.0,0.05805545]
[1729857003109,0.073336,68216.0,68215.0,0.05805545]
[1729857003316,0.073336,68216.0,68215.0,0.1168708]
[1729857003514,0.073336,68216.0,68215.0,0.073337]
[1729857006121,0.085056,68216.0,68215.0,0.2926398]
[1729857006328,0.085056,68216.0,68215.0,0.073337]
[1729857006530,0.07334,68213.0,68212.0,0.4785548]
[1729857006724,0.01172,68216.0,68212.0,0.4043338]
[1729857006917,0.085057,68216.0,68215.0,0.073337]
[1729857007425,0.073339,68214.0,68213.0,0.1168728]
[1729857007620,0.01172,68216.0,68215.0,0.073337]
[1729857007926,0.085056,68216.0,68215.0,0.073337]
[1729857009514,0.073339,68214.0,68213.0,0.04355179]
[1729857009720,0.073339,68214.0,68213.0,0.11689179]
[1729857009922,0.073339,68214.0,68213.0,0.07334]
[1729857011126,0.073339,68214.0,68213.0,0.11691238]
[1729857011426,0.1080485,68214.0,68213.0,0.07334]
[1729857011627,0.14834785,68214.0,68213.0,0.07334]
[1729857012327,0.19423995,68214.0,68213.0,0.07334]
[1729857013029,0.19410668,68214.0,68213.0,0.07334]
[1729857013624,0.34075509,68214.0,68213.0,0.07334]
[1729857014319,0.19410668,68214.0,68213.0,0.07334]
[1729857015523,0.073342,68211.0,68210.0,0.3608]
[1729857015814,0.073344,68209.0,68208.0,0.073344]
[1729857016023,0.073344,68209.0,68203.0,0.38711703]
[1729857016024,0.03444788,68209.0,68203.0,0.38711703]
[1729857016227,0.073347,68207.0,68205.0,0.073348]
[1729857016414,0.073347,68207.0,68206.0,0.16583464]
[1729857016615,0.03431749,68207.0,68206.0,0.16583464]
[1729857017525,0.03431749,68207.0,68206.0,0.073347]
[1729857017526,0.073349,68207.0,68206.0,0.073347]
[1729857017828,0.073347,68206.0,68205.0,0.09248764]
[1729857018128,0.10775413,68206.0,68205.0,0.09248764]
[1729857018518,0.073347,68206.0,68205.0,0.26164837]
[1729857018825,0.16583464,68206.0,68205.0,0.01946073]
[1729857019026,0.45328764,68206.0,68204.0,0.05816209]
[1729857019328,0.52663464,68206.0,68205.0,0.04360626]
[1729857019732,0.07335,68203.0,68202.0,0.05816209]
[1729857020121,0.48028558,68206.0,68201.0,0.13151409]
[1729857020321,0.38703794,68206.0,68204.0,0.04359475]
[1729857020530,0.073348,68205.0,68204.0,0.04359475]
[1729857020928,0.07335,68203.0,68202.0,0.04359475]
[1729857021235,0.14094335,68203.0,68201.0,0.04358677]
[1729857021420,0.14094335,68203.0,68198.0,0.04359267]
[1729857021421,0.073355,68199.0,68198.0,0.04359267]
[1729857021625,0.073356,68198.0,68196.0,0.04359267]
[1729857021825,0.14094335,68197.0,68192.0,0.05816209]
[1729857022028,0.14094335,68197.0,68188.0,0.36168]
[1729857022029,0.073359,68195.0,68194.0,0.04360074]
[1729857022223,0.073359,68195.0,68191.0,0.04360074]
[1729857022529,0.073359,68195.0,68187.0,0.04360074]
[1729857022530,0.14094335,68191.0,68187.0,0.04360074]
[1729857022735,0.14094335,68191.0,68183.0,0.05816209]
[1729857022736,0.073368,68187.0,68186.0,0.04360074]
[1729857022930,0.073369,68186.0,68185.0,0.04360074]
[1729857023123,0.14094335,68191.0,68183.0,0.11697274]
[1729857023325,0.07337,68186.0,68185.0,0.073369]
[1729857024235,0.14094335,68186.0,68181.0,0.40440074]
[1729857024437,0.21431635,68182.0,68181.0,0.3608]
[1729857027228,0.21431635,68182.0,68181.0,0.434174]
[1729857029329,0.14094335,68182.0,68181.0,0.434174]
[1729857029529,0.3608,68192.0,68181.0,0.3608]
[1729857029731,0.073366,68189.0,68188.0,0.073365]
[1729857032050,0.07580387,68189.0,68188.0,0.073365]
[1729857032640,0.07735264,68189.0,68188.0,0.073365]
[1729857033855,0.07735264,68189.0,68185.0,0.04360074]
[1729857033856,0.073369,68186.0,68185.0,0.04360074]
[1729857034049,0.073371,68184.0,68183.0,0.04360074]
[1729857034251,0.00553541,68184.0,68182.0,0.04360074]
[1729857034545,0.00553541,68184.0,68179.0,0.073375]
[1729857034546,0.073373,68182.0,68179.0,0.073375]
[1729857034748,0.00708418,68181.0,68179.0,0.073375]
[1729857034953,0.073377,68180.0,68179.0,0.073375]
[1729857035549,0.08200995,68180.0,68179.0,0.073375]
[1729857037162,0.08355872,68180.0,68179.0,0.073375]
[1729857039450,0.0366183,68180.0,68176.0,0.04342868]
[1729857039654,0.073379,68176.0,68174.0,0.04342868]
[1729857039858,0.3608,68175.0,68170.0,0.0434475]
[1729857040057,0.073386,68170.0,68169.0,0.073386]
[1729857040262,0.08356772,68170.0,68169.0,0.073386]
[1729857040962,0.01018172,68170.0,68169.0,0.073386]
[1729857041157,0.01018172,68170.0,68169.0,0.1168335]
[1729857042261,0.01018172,68170.0,68169.0,0.11684832]
[1729857042958,0.01018172,68170.0,68169.0,0.434186]
[1729857044155,0.14094335,68181.0,68169.0,0.434186]
[1729857044356,0.14094335,68181.0,68180.0,0.073375]
[1729857044560,0.21431735,68181.0,68180.0,0.073375]
[1729857045159,0.14094335,68184.0,68180.0,0.434175]
[1729857045463,0.073367,68189.0,68188.0,0.073367]
[1729857045667,0.21431035,68189.0,68188.0,0.11684696]
[1729857046064,0.21431035,68189.0,68188.0,0.073367]
[1729857058979,0.21431035,68189.0,68188.0,0.11692001]
[1729857060277,0.073368,68187.0,68186.0,0.3608]
[1729857060478,0.073368,68187.0,68186.0,0.434169]
[1729857061474,0.073368,68187.0,68186.0,0.47771678]
[1729857061676,0.073368,68187.0,68186.0,0.434169]
[1729857062077,0.073368,68187.0,68186.0,0.47771174]
[1729857062281,0.073368,68187.0,68186.0,0.434169]
[1729857062475,0.073368,68187.0,68186.0,0.47770958]
[1729857062678,0.1026,68213.0,68186.0,1.76249525]
[1729857062879,0.07335,68205.0,68204.0,0.073348]
[1729857063070,0.21429335,68205.0,68204.0,0.073348]
[1729857063474,0.24951827,68205.0,68204.0,0.073348]
[1729857063685,0.29041605,68205.0,68204.0,0.073348]
[1729857064583,0.24951827,68205.0,68204.0,0.073348]
[1729857065283,0.29056291,68205.0,68204.0,0.073348]
[1729857066275,0.03522492,68205.0,68204.0,0.073348]
[1729857066885,0.073346,68208.0,68207.0,0.073346]
[1729857067089,0.21034938,68214.0,68212.0,0.073341]
[1729857067090,0.0434,68214.0,68212.0,0.073341]
[1729857067284,0.07677564,68213.0,68212.0,0.073341]
[1729857067480,0.15011564,68213.0,68212.0,0.073341]
[1729857068685,0.073345,68210.0,68209.0,0.073343]
[1729857068986,0.24981541,68210.0,68209.0,0.073343]
[1729857069678,0.073345,68208.0,68207.0,0.434146]
[1729857069881,0.1088445,68208.0,68207.0,0.434146]
[1729857070088,0.1205645,68208.0,68207.0,0.434146]
[1729857070287,0.073355,68200.0,68195.0,0.0907]
[1729857070492,0.1205645,68208.0,68195.0,0.073358]
[1729857070493,0.21430235,68196.0,68195.0,0.073358]
[1729857070989,0.6426867,68196.0,68182.0,0.3608]
[1729857071197,0.6426867,68196.0,68177.0,0.1474]
[1729857071198,0.14094335,68183.0,68177.0,0.1474]
[1729857071489,0.073376,68180.0,68179.0,0.073374]
[1729857071687,0.073372,68184.0,68183.0,0.07337]
[1729857074091,0.14094335,68187.0,68178.0,0.14094335]
[1729857074394,0.3608,68190.0,68189.0,0.073365]
[1729857078011,0.37253,68190.0,68189.0,0.073365]
[1729857078815,0.01173,68190.0,68189.0,0.073365]
[1729857085012,0.085094,68190.0,68189.0,0.073365]
[1729857085315,0.22603735,68190.0,68189.0,0.073365]
[1729857085513,0.073369,68187.0,68186.0,0.073369]
[1729857085714,0.21431235,68187.0,68186.0,0.073369]
[1729857086804,0.14094335,68187.0,68179.0,0.3608]
[1729857087006,0.2156878,68183.0,68182.0,0.073372]
[1729857088214,0.073375,68180.0,68179.0,0.3608]
[1729857088417,0.073387,68169.0,68168.0,0.07027165]
[1729857088605,0.21433035,68169.0,68168.0,0.07027165]
[1729857088806,0.21433035,68169.0,68168.0,0.10014702]
[1729857089007,0.2157018,68169.0,68168.0,0.073388]
[1729857089819,0.07475845,68169.0,68168.0,0.073388]
[1729857092014,0.073392,68166.0,68165.0,0.07339]
[1729857093106,0.07476345,68166.0,68165.0,0.07339]
[1729857093605,0.07476345,68166.0,68165.0,0.13142553]
[1729857093808,0.00137145,68166.0,68165.0,0.07339]
[1729857095720,0.07476145,68166.0,68165.0,0.07339]
[1729857097208,0.00137145,68166.0,68165.0,0.07339]
[1729857099121,0.00137145,68166.0,68165.0,0.21433335]
[1729857100616,0.00137145,68166.0,68165.0,0.28688711]
[1729857101523,0.00137145,68166.0,68165.0,0.21433335]
[1729857101726,0.00137145,68166.0,68165.0,0.07339]
[1729857106713,0.07476145,68166.0,68165.0,0.07339]
[1729857107316,0.073395,68162.0,68161.0,0.434194]
[1729857108118,0.07476645,68162.0,68161.0,0.434194]
[1729857108919,0.00137145,68162.0,68161.0,0.434194]
[1729857109115,0.00137145,68162.0,68161.0,0.57513735]
[1729857109818,0.00137145,68162.0,68161.0,0.64769111]
[1729857110016,0.00137145,68162.0,68161.0,0.74493055]
[1729857110418,0.00137145,68162.0,68161.0,0.74492186]
[1729857110625,0.00137145,68162.0,68161.0,0.6723681]
[1729857110925,0.00137145,68162.0,68161.0,0.74492219]
[1729857111123,0.00137145,68162.0,68161.0,0.65228141]
[1729857111320,0.00137145,68162.0,68161.0,0.74494794]
[1729857111516,0.00137145,68162.0,68161.0,0.67237901]
[1729857111822,0.073389,68168.0,68167.0,0.073389]
[1729857112020,0.073389,68168.0,68167.0,0.13144923]
[1729857112519,0.073389,68168.0,68167.0,0.073389]
[1729857113118,0.073386,68172.0,68171.0,0.073383]
[1729857114324,0.073386,68172.0,68171.0,0.13150136]
[1729857114621,0.073386,68172.0,68171.0,0.073383]
[1729857115522,0.073386,68172.0,68171.0,0.24339002]
[1729857115717,0.073386,68172.0,68171.0,0.14595829]
[1729857116325,0.073386,68172.0,68171.0,0.073383]
[1729857116326,0.21432935,68172.0,68171.0,0.073383]
[1729857116631,0.21432935,68172.0,68169.0,0.14617449]
[1729857116832,0.3608,68170.0,68166.0,0.07339]
[1729857117029,0.073389,68167.0,68166.0,0.07339]
[1729857117327,0.10678611,68167.0,68166.0,0.07339]
[1729857117532,0.14543294,68167.0,68166.0,0.07339]
[1729857118324,0.10678611,68167.0,68166.0,0.07339]
[1729857118631,0.073395,68164.0,68163.0,0.073393]
[1729857118818,0.24773546,68164.0,68163.0,0.073393]
[1729857120331,0.28637097,68164.0,68163.0,0.073393]
[1729857122334,0.24773546,68164.0,68163.0,0.073393]
[1729857122532,0.24773546,68164.0,68161.0,0.3608]
[1729857122725,0.073395,68162.0,68161.0,0.3608]
[1729857122927,0.14532867,68162.0,68161.0,0.3608]
[1729857123736,0.073395,68162.0,68161.0,0.4587447]
[1729857124135,0.073395,68162.0,68161.0,0.3608]
[1729857124336,0.073395,68162.0,68161.0,0.45874487]
[1729857125039,0.073395,68162.0,68161.0,0.53214087]
[1729857125423,0.073395,68162.0,68161.0,0.61953565]
[1729857126243,0.073395,68162.0,68161.0,0.17134087]
[1729857129432,0.073395,68162.0,68161.0,0.09794487]
[1729857129633,0.073395,68162.0,68161.0,0.17134087]
[1729857131935,0.073395,68162.0,68161.0,0.073396]
[1729857138336,0.16594722,68162.0,68161.0,0.073396]
[1729857140547,0.073401,68158.0,68157.0,0.073397]
[1729857140840,0.19900085,68158.0,68157.0,0.073397]
[1729857141635,0.073389,68167.0,68155.0,0.3872617]
[1729857141636,0.14664841,68176.0,68155.0,0.84061392]
[1729857141842,0.19900246,68168.0,68167.0,0.073388]
[1729857143346,0.21073246,68168.0,68167.0,0.073388]
[1729857144033,0.11818024,68168.0,68167.0,0.073388]
[1729857146148,0.11818024,68168.0,68167.0,0.11708213]
[1729857146149,0.01173,68168.0,68167.0,0.11708213]
[1729857146448,0.01173,68168.0,68167.0,0.22419906]
[1729857146850,0.01173,68168.0,68167.0,0.16594022]
[1729857149545,0.01173,68168.0,68167.0,0.2242017]
[1729857152347,0.01296734,68168.0,68167.0,0.2242017]
[1729857152856,0.01296734,68168.0,68167.0,0.13164948]
[1729857153154,0.17890756,68168.0,68167.0,0.073388]
[1729857153542,0.27145978,68168.0,68167.0,0.073388]
[1729857153745,0.17890756,68168.0,68167.0,0.073388]
[1729857153947,0.34415185,68168.0,68167.0,0.073388]
[1729857154159,0.073392,68164.0,68163.0,0.434192]
[1729857154454,0.073392,68164.0,68156.0,0.073401]
[1729857154455,0.073401,68157.0,68156.0,0.073401]
[1729857154653,0.23864529,68157.0,68156.0,0.073401]
[1729857154854,0.28370118,68157.0,68156.0,0.073401]
[1729857155354,0.23988263,68157.0,68156.0,0.073401]
[1729857156753,0.16719056,68157.0,68156.0,0.073401]
[1729857156953,0.2388303,68157.0,68156.0,0.073401]
[1729857158357,0.28731372,68157.0,68156.0,0.073401]
[1729857158951,0.21391272,68157.0,68156.0,0.073401]
[1729857160975,0.14227298,68157.0,68156.0,0.25865581]
[1729857161678,0.14227298,68157.0,68156.0,0.61945581]
[1729857163271,0.14227298,68157.0,68156.0,0.53206103]
[1729857164073,0.00123734,68157.0,68156.0,0.53206103]
[1729857166279,0.00123734,68157.0,68156.0,0.53206442]
[1729857167081,0.14227298,68157.0,68156.0,0.53206442]
[1729857167570,0.00123734,68157.0,68156.0,0.53206442]
[1729857168982,0.00123734,68157.0,68156.0,0.434201]
[1729857169185,0.03459246,68157.0,68156.0,0.434201]
[1729857171087,0.03460385,68157.0,68156.0,0.434201]
[1729857171275,0.17563949,68157.0,68156.0,0.434201]
[1729857172984,0.18736949,68157.0,68156.0,0.434201]
[1729857173486,0.26076949,68157.0,68156.0,0.434201]
[1729857175491,0.22740298,68157.0,68156.0,0.434201]
[1729857175686,0.29934723,68157.0,68156.0,0.434201]
[1729857176093,0.22740298,68157.0,68156.0,0.434201]
[1729857180193,0.15400298,68157.0,68156.0,0.434201]
[1729857180495,0.10552077,68157.0,68156.0,0.50704918]
[1729857180680,0.10552077,68157.0,68156.0,0.14624918]
[1729857181290,0.10552077,68157.0,68156.0,0.24412727]
[1729857181687,0.10552077,68157.0,68156.0,0.073401]
[1729857182398,0.10552077,68157.0,68156.0,0.14624918]
[1729857183389,0.10552077,68157.0,68156.0,0.17140362]
[1729857183590,0.10552077,68157.0,68156.0,0.073401]
[1729857183796,0.10552077,68157.0,68156.0,0.17140347]
[1729857184000,0.10552077,68157.0,68156.0,0.073401]
[1729857185599,0.17892077,68157.0,68156.0,0.073401]
[1729857186593,0.10552077,68157.0,68156.0,0.073401]
[1729857190603,0.17892077,68157.0,68156.0,0.073401]
[1729857191097,0.21218642,68157.0,68156.0,0.073401]
[1729857191494,0.13878642,68157.0,68156.0,0.073401]
[1729857192299,0.21218642,68157.0,68156.0,0.073401]
[1729857193103,0.21228987,68157.0,68156.0,0.073401]
[1729857194507,0.04633644,68157.0,68156.0,0.16595443]
[1729857194704,0.01296734,68157.0,68156.0,0.16595443]
[1729857195003,0.01296734,68157.0,68156.0,0.073401]
[1729857195794,0.04666525,68157.0,68156.0,0.073401]
[1729857197605,0.01296734,68157.0,68156.0,0.16595443]
[1729857197799,0.01296734,68157.0,68156.0,0.18890567]
[1729857197999,0.01296734,68157.0,68156.0,0.17054464]
[1729857198194,0.01296734,68157.0,68156.0,0.07799121]
[1729857198395,0.01296734,68157.0,68156.0,0.073401]
[1729857198603,0.04793309,68157.0,68156.0,0.073401]
[1729857199311,0.08636734,68157.0,68156.0,0.073401]
[1729857199702,0.10552077,68157.0,68153.0,0.43373471]
[1729857199898,0.16595643,68154.0,68153.0,0.3608]
[1729857200313,0.16719377,68154.0,68153.0,0.3608]
[1729857201601,0.52799377,68154.0,68153.0,0.04377382]
[1729857201820,0.52799377,68154.0,68138.0,0.0505]
[1729857201821,0.073407,68150.0,68149.0,0.04378079]
[1729857202105,0.64466686,68150.0,68145.0,0.073412]
[1729857202314,0.45335343,68146.0,68144.0,0.04378079]
[1729857202614,0.073414,68144.0,68143.0,0.04378079]
[1729857202802,0.073415,68143.0,68142.0,0.073415]
[1729857203107,0.073415,68143.0,68142.0,0.1171607]
[1729857203303,0.09255343,68143.0,68139.0,0.05838301]
[1729857203507,0.52677143,68140.0,68139.0,0.13180201]
[1729857203716,0.52677143,68140.0,68139.0,0.13174388]
[1729857204309,0.52677143,68140.0,68139.0,0.073419]
[1729857204510,0.45459077,68140.0,68139.0,0.073419]
[1729857204704,0.45459077,68140.0,68139.0,0.13174388]
[1729857204705,0.36203734,68140.0,68139.0,0.13174388]
[1729857204901,0.00123734,68140.0,68139.0,0.16597243]
[1729857205107,0.00123734,68140.0,68139.0,0.26296935]
[1729857205408,0.073408,68150.0,68139.0,0.26296935]
[1729857205602,0.073408,68150.0,68149.0,0.073409]
[1729857205802,0.09255343,68150.0,68149.0,0.13168405]
[1729857206008,0.3608,68153.0,68152.0,0.073405]
[1729857206204,0.3608,68153.0,68152.0,0.24300891]
[1729857206401,0.3608,68153.0,68152.0,0.073405]
[1729857208207,0.3608,68153.0,68152.0,0.14624881]
[1729857208815,0.3608,68153.0,68152.0,0.073405]
[1729857209201,0.3608,68153.0,68152.0,0.14624881]
[1729857209408,0.3608,68153.0,68152.0,0.073405]
[1729857210114,0.3608,68153.0,68152.0,0.14624881]
[1729857211616,0.3608,68153.0,68152.0,0.073405]
[1729857212013,0.3608,68153.0,68152.0,0.14624881]
[1729857212206,0.3608,68153.0,68152.0,0.073405]
[1729857212913,0.434204,68153.0,68152.0,0.14624881]
[1729857213115,0.434204,68153.0,68152.0,0.073405]
[1729857213615,0.434204,68153.0,68152.0,0.14624881]
[1729857214112,0.46857391,68153.0,68152.0,0.073405]
[1729857214903,0.434204,68153.0,68152.0,0.073405]
[1729857218310,0.3608,68153.0,68152.0,0.073405]
[1729857219315,0.3608,68153.0,68152.0,0.16595843]
[1729857219818,0.3608,68153.0,68152.0,0.073405]
[1729857226015,0.3608,68153.0,68152.0,0.16595843]
[1729857226721,0.37253,68153.0,68152.0,0.16595843]
[1729857226919,0.37253,68153.0,68152.0,0.17697714]
[1729857227326,0.37253,68153.0,68152.0,0.118705]
[1729857229218,0.44641923,68153.0,68152.0,0.118705]
[1729857230220,0.40672141,68153.0,68152.0,0.118705]
[1729857234531,0.4464465,68153.0,68152.0,0.118705]
[1729857235324,0.44639009,68153.0,68152.0,0.118705]
[1729857235831,0.44639009,68153.0,68152.0,0.073405]
[1729857236529,0.37253,68153.0,68152.0,0.17054276]
[1729857237434,0.01173,68153.0,68152.0,0.28618827]
[1729857237623,0.01173,68153.0,68152.0,0.17054276]
[1729857238223,0.01173,68153.0,68152.0,0.28621575]
[1729857238626,0.01173,68153.0,68152.0,0.17054276]
[1729857239624,0.01173,68153.0,68152.0,0.2861604]
[1729857240521,0.01173,68153.0,68152.0,0.29075091]
[1729857240732,0.01173,68153.0,68152.0,0.2861604]
[1729857240922,0.01173,68153.0,68152.0,0.17054276]
[1729857241319,0.17768743,68153.0,68152.0,0.25810147]
[1729857241524,0.17768743,68153.0,68152.0,0.17054276]